bitfinex-derivatives/quotes_BNBF0:USTF0_20250221
["timestamp","ask_amount","ask_price","bid_price","bid_amount"]
[1740106151833,1.60007357,653.85,651.98,1.14118452]
[1740106151834,0.30597882,653.64,651.98,1.14118452]
[1740106152229,0.87323716,653.63,651.98,1.14118452]
[1740106152427,0.30599287,653.61,651.98,1.14118452]
[1740106152728,0.30599287,653.61,651.68,1.14474865]
[1740106152729,0.87323716,653.6,651.95,1.14118452]
[1740106152930,0.30600691,653.58,651.95,1.14118452]
[1740106153430,0.87323716,653.57,651.95,1.14118452]
[1740106153727,0.30602096,653.55,651.95,1.14118452]
[1740106154134,0.87323716,653.54,651.95,1.14118452]
[1740106154435,0.30603501,653.52,651.95,1.14118452]
[1740106155434,0.30603501,653.52,651.75,1.14118452]
[1740106158234,0.30603501,653.52,651.73,1.14118452]
[1740106161939,0.30603501,653.52,651.69,1.14118452]
[1740106162739,1.60098758,653.51,651.69,1.14118452]
[1740106162938,0.30604437,653.5,651.69,1.14118452]
[1740106164835,0.30604437,653.5,651.98,1.14118452]
[1740106167744,0.922,653.49,652.04,1.14118452]
[1740106167945,0.30605842,653.47,652.04,1.14118452]
[1740106170147,0.30605842,653.47,652.25,1.14118452]
[1740106171946,0.30605842,653.47,652.36,1.14118452]
[1740106174951,0.30605842,653.47,652.41,1.14118452]
[1740106177052,0.30605842,653.47,652.48,1.14118452]
[1740106178954,0.30605842,653.47,652.35,1.14118452]
[1740106179854,1.426,653.46,652.35,1.14118452]
[1740106180049,0.30606779,653.45,652.35,1.14118452]
[1740106180652,1.6008096,653.44,652.35,1.14118452]
[1740106180852,0.30607716,653.43,652.35,1.14118452]
[1740106184756,0.30607716,653.43,652.24,1.14118452]
[1740106187155,0.30607716,653.43,652.25,1.14118452]
[1740106189253,0.30607716,653.43,652.3,1.14118452]
[1740106192261,0.30607716,653.43,652.43,1.14118452]
[1740106194664,0.30607716,653.43,652.37,1.14118452]
[1740106196964,0.30607716,653.43,652.3,1.14118452]
[1740106199559,0.30607716,653.43,652.21,1.14118452]
[1740106202465,0.30607716,653.43,651.96,0.30676728]
[1740106202466,0.30607716,653.43,652.23,1.14118452]
[1740106204560,0.30607716,653.43,651.96,0.30676728]
[1740106204561,0.30607716,653.43,652.32,1.14118452]
[1740106207570,0.30607716,653.43,651.96,0.30676728]
[1740106207571,1.42,653.42,652.68,1.14118452]
[1740106210471,1.42,653.42,652.31,1.14118452]
[1740106212371,0.30608653,653.41,652.31,1.14118452]
[1740106213471,0.30608653,653.41,652.36,1.14118452]
[1740106216170,0.30608653,653.41,652.23,1.14118452]
[1740106219071,0.30608653,653.41,652.15,1.14118452]
[1740106219979,1.318,653.4,652.15,1.14118452]
[1740106220177,0.30609589,653.39,652.15,1.14118452]
[1740106221579,0.30609589,653.39,652.3,1.14118452]
[1740106224081,0.30609589,653.39,652.29,1.14118452]
[1740106230882,0.30609589,653.39,652.27,1.14118452]
[1740106234388,0.30609589,653.39,652.22,1.14118452]
[1740106235789,1.471,653.38,652.22,1.14118452]
[1740106235989,0.30610526,653.37,652.22,1.14118452]
[1740106236587,0.30610526,653.37,652.05,1.14118452]
[1740106238885,0.30610526,653.37,652.09,1.14118452]
[1740106241100,1.60110421,653.36,652.09,1.14118452]
[1740106241498,0.30611463,653.35,652.09,1.14118452]
[1740106242700,0.30611463,653.35,652.14,1.14118452]
[1740106244501,0.30611463,653.35,651.83,1.14474865]
[1740106244502,0.30611463,653.35,652.56,1.14118452]
[1740106250209,0.30611463,653.35,652.64,1.14118452]
[1740106252708,0.30611463,653.35,652.45,1.14118452]
[1740106255113,0.30611463,653.35,652.42,1.14118452]
[1740106260919,0.30611463,653.35,652.54,1.14118452]
[1740106263718,0.30611463,653.35,652.58,1.14118452]
[1740106267025,0.30611463,653.35,652.65,1.14118452]
[1740106269626,0.30611463,653.35,652.62,1.14118452]
[1740106271920,0.30611463,653.35,652.67,1.14118452]
[1740106275531,0.30611463,653.35,652.55,1.14118452]
[1740106276928,1.37568881,654.15,652.55,1.14118452]
[1740106277133,0.30574962,654.13,652.55,1.14118452]
[1740106277329,1.11138854,654.12,652.55,1.14118452]
[1740106277628,0.30576364,654.1,652.55,1.14118452]
[1740106278424,1.98394206,654.09,652.55,1.14118452]
[1740106278627,0.30577766,654.07,652.55,1.14118452]
[1740106278822,1.11056051,654.06,652.55,1.14118452]
[1740106279023,0.30579169,654.04,652.55,1.14118452]
[1740106279231,1.11056051,654.03,652.35,1.14118452]
[1740106279428,0.30580572,654.01,652.35,1.14118452]
[1740106279629,0.87338537,654.0,652.35,1.14118452]
[1740106279932,1.76938537,654.0,652.35,1.14118452]
[1740106280230,0.30581974,653.98,652.35,1.14118452]
[1740106280730,0.87338537,653.97,652.35,1.14118452]
[1740106280930,0.30583377,653.95,652.35,1.14118452]
[1740106282930,0.30583377,653.95,652.47,1.14118452]
[1740106284331,1.59982837,653.94,652.47,1.14118452]
[1740106284529,0.30584781,653.92,652.47,1.14118452]
[1740106286027,0.30584781,653.92,652.38,1.14118452]
[1740106288232,0.30584781,653.92,652.44,1.14118452]
[1740106291834,0.30584781,653.92,652.27,1.14118452]
[1740106295431,0.30584781,653.92,652.38,1.14118452]
[1740106297738,0.30584781,653.92,652.61,1.14118452]
[1740106299841,0.30584781,653.92,652.56,1.14118452]
[1740106302141,0.30584781,653.92,652.59,1.14118452]
[1740106306144,0.30584781,653.92,652.51,1.14118452]
[1740106308044,0.30584781,653.92,652.01,0.30674376]
[1740106308045,0.30584781,653.92,652.57,1.14118452]
[1740106310847,0.30584781,653.92,652.65,1.14118452]
[1740106313347,0.30584781,653.92,652.65,2.28593317]
[1740106313550,0.87136137,653.91,652.87,1.14118452]
[1740106313751,0.30586184,653.89,652.87,1.14118452]
[1740106315559,0.30586184,653.89,652.74,1.14118452]
[1740106319364,0.30586184,653.89,652.46,1.14474865]
[1740106319365,0.30586184,653.89,652.66,1.14118452]
[1740106319564,1.008,653.88,652.66,1.14118452]
[1740106319865,0.30587587,653.86,652.66,1.14118452]
[1740106323066,1.186,653.85,652.65,1.14118452]
[1740106323461,0.30588991,653.83,652.65,1.14118452]
[1740106325174,0.30588991,653.83,652.6,1.14118452]
[1740106327270,0.87439863,653.82,652.6,1.14118452]
[1740106327574,0.30590394,653.8,652.58,1.14118452]
[1740106327767,0.87439863,653.79,652.58,1.14118452]
[1740106327968,0.30591798,653.77,652.58,1.14118452]
[1740106330579,1.60013488,653.76,652.4,1.14118452]
[1740106330778,0.30593202,653.74,652.4,1.14118452]
[1740106331681,0.87429349,653.73,652.4,1.14118452]
[1740106331880,0.30594138,653.72,652.4,1.14118452]
[1740106332281,0.87429349,653.71,652.4,1.14118452]
[1740106332581,0.30595074,653.7,652.4,1.14118452]
[1740106332880,0.87429349,653.69,652.4,1.14118452]
[1740106333075,1.18025359,653.68,652.4,1.14118452]
[1740106333282,1.18025359,653.68,652.38,1.14118452]
[1740106333283,0.30596478,653.67,652.38,1.14118452]
[1740106335678,0.30596478,653.67,652.53,1.14118452]
[1740106337183,1.087,653.66,652.53,1.14118452]
[1740106337381,0.30597414,653.65,652.53,1.14118452]
[1740106338787,0.30597414,653.65,652.62,1.14118452]
[1740106340788,1.60015327,653.64,652.62,1.14118452]
[1740106340988,0.3059835,653.63,652.62,1.14118452]
[1740106341188,0.3059835,653.63,652.64,1.14118452]
[1740106343782,0.3059835,653.63,652.43,1.14118452]
[1740106346092,0.3059835,653.63,652.45,1.14118452]
[1740106348895,0.3059835,653.63,652.35,1.14118452]
[1740106351196,0.3059835,653.63,652.46,1.14118452]
[1740106354096,0.3059835,653.63,651.72,1.37369838]
[1740106354097,0.3059835,653.63,652.44,1.14118452]
[1740106359702,0.3059835,653.63,652.4,1.14118452]
[1740106364307,1.014,653.62,652.4,1.14118452]
[1740106364607,0.30599755,653.6,652.4,1.14118452]
[1740106366105,0.30599755,653.6,652.53,1.14118452]
[1740106368710,0.30599755,653.6,652.58,1.14118452]
[1740106372007,0.87315977,653.59,652.58,1.14118452]
[1740106372210,0.30601159,653.57,652.58,1.14118452]
[1740106372914,1.60043537,653.56,652.58,1.14118452]
[1740106373114,0.30602096,653.55,652.58,1.14118452]
[1740106374211,0.30602096,653.55,652.57,1.14118452]
[1740106375716,0.87336069,653.54,652.57,1.14118452]
[1740106375916,0.30603501,653.52,652.57,1.14118452]
[1740106376722,0.30603501,653.52,652.08,2.33719517]
[1740106376723,1.287,653.51,652.39,1.14118452]
[1740106377016,0.30604905,653.49,652.39,1.14118452]
[1740106379725,0.30604905,653.49,652.4,1.14118452]
[1740106383127,0.30604905,653.49,652.22,1.14118452]
[1740106383128,1.60084642,653.48,652.22,1.14118452]
[1740106383324,0.30606311,653.46,652.22,1.14118452]
[1740106384526,0.8724638,653.45,652.22,1.14118452]
[1740106384718,0.30607716,653.43,652.22,1.14118452]
[1740106385219,0.8724638,653.42,652.18,1.14118452]
[1740106385420,0.30609121,653.4,652.18,1.14118452]
[1740106388423,0.30609121,653.4,652.14,1.14118452]
[1740106391028,0.30609121,653.4,652.29,1.14118452]
[1740106393432,1.60084642,653.39,652.29,1.14118452]
[1740106393633,0.30610058,653.38,652.26,1.14118452]
[1740106396930,0.30610058,653.38,652.11,1.14118452]
[1740106399033,0.30610058,653.38,652.14,1.14118452]
[1740106401639,0.30610058,653.38,652.35,1.14118452]
[1740106404532,1.596,653.37,652.35,1.14118452]
[1740106404729,0.30610995,653.36,652.35,1.14118452]
[1740106404930,0.30610995,653.36,652.15,1.14118452]
[1740106407434,0.30610995,653.36,652.22,1.14118452]
[1740106410235,0.30610995,653.36,652.25,1.14118452]
[1740106412340,0.30610995,653.36,652.33,1.14118452]
[1740106414737,0.30610995,653.36,652.44,1.14118452]
[1740106417043,0.30610995,653.36,652.27,1.14118452]
[1740106418638,1.106,653.35,652.27,1.14118452]
[1740106418838,0.30611932,653.34,652.27,1.14118452]
[1740106419143,0.30611932,653.34,652.11,1.14118452]
[1740106421742,0.87410251,653.33,652.11,1.14118452]
[1740106421947,0.30612869,653.32,652.11,1.14118452]
[1740106422146,0.30612869,653.32,652.1,1.14118452]
[1740106422445,1.60112263,653.31,652.1,1.14118452]
[1740106422643,0.30613806,653.3,652.1,1.14118452]
[1740106425746,0.30613806,653.3,652.19,1.14118452]
[1740106427753,0.30613806,653.3,652.18,1.14118452]
[1740106430254,0.30613806,653.3,652.19,1.14118452]
[1740106432760,0.30613806,653.3,651.88,1.14118452]
[1740106434464,1.105,653.29,651.88,1.14118452]
[1740106434663,0.30614744,653.28,651.88,1.14118452]
[1740106435661,0.30614744,653.28,651.84,1.14118452]
[1740106438364,0.30614744,653.28,652.08,1.14118452]
[1740106441669,0.30614744,653.28,652.27,1.14118452]
[1740106444071,0.30614744,653.28,652.4,1.14118452]
[1740106446572,0.30614744,653.28,652.25,1.14118452]
[1740106449069,0.87620522,653.27,652.25,1.14118452]
[1740106449274,0.30615681,653.26,652.03,1.14118452]
[1740106451879,0.87625498,653.25,652.03,1.14118452]
[1740106452080,0.30616618,653.24,652.03,1.14118452]
[1740106452480,0.30616618,653.24,652.02,1.14118452]
[1740106452681,2.4775411,653.23,652.02,1.14118452]
[1740106452881,0.30617556,653.22,652.02,1.14118452]
[1740106454875,0.30617556,653.22,652.18,1.14118452]
[1740106457082,0.30617556,653.22,652.15,1.14118452]
[1740106459483,0.30617556,653.22,652.21,1.14118452]
[1740106462281,0.30617556,653.22,652.09,1.14118452]
[1740106464783,0.30617556,653.22,651.94,1.14118452]
[1740106468386,0.30617556,653.22,651.98,1.14118452]
[1740106470686,1.025,653.21,651.98,1.14118452]
[1740106470890,0.30618493,653.2,652.1,1.14118452]
[1740106471283,1.59318493,653.2,652.1,1.14118452]
[1740106472986,1.59318493,653.2,652.12,1.14118452]
[1740106476095,1.59318493,653.2,652.19,1.14118452]
[1740106478799,1.59318493,653.2,652.2,1.14118452]
[1740106482204,1.59318493,653.2,652.15,1.14118452]
[1740106485106,1.59318493,653.2,651.38,2.33719517]
[1740106485107,1.59318493,653.2,652.06,1.14118452]
[1740106490003,0.87641209,653.19,652.06,1.14118452]
[1740106490206,0.30619431,653.18,652.06,1.14118452]
[1740106490707,0.30619431,653.18,652.17,1.14118452]
[1740106493002,0.30619431,653.18,652.25,1.14118452]
[1740106495606,0.30619431,653.18,652.27,1.14118452]
[1740106498914,0.30619431,653.18,651.71,2.33719517]
[1740106498915,0.30619431,653.18,652.28,1.14118452]
[1740106501410,0.30619431,653.18,652.3,1.14118452]
[1740106504017,0.30619431,653.18,652.31,1.14118452]
[1740106506423,0.30619431,653.18,652.19,1.14118452]
[1740106508223,0.30619431,653.18,652.23,1.14118452]
[1740106510819,0.30619431,653.18,652.21,1.14118452]
[1740106511623,0.87741643,653.17,652.21,1.14118452]
[1740106511823,0.30620368,653.16,652.21,1.14118452]
[1740106516025,1.60097531,653.15,652.21,1.14118452]
[1740106517327,1.60097531,653.15,651.67,2.33719517]
[1740106517328,1.60097531,653.15,652.35,1.14118452]
[1740106519225,1.21,653.14,652.35,1.14118452]
[1740106519930,1.21,653.14,651.81,2.33719517]
[1740106519931,1.21,653.14,652.34,1.14118452]
[1740106520632,0.30621775,653.13,652.34,1.14118452]
[1740106521827,1.381,653.12,652.34,1.14118452]
[1740106522028,0.30622712,653.11,652.34,1.14118452]
[1740106524233,0.30622712,653.11,652.08,1.14118452]
[1740106529735,0.30622712,653.11,652.14,1.14118452]
[1740106534840,0.30622712,653.11,652.18,1.14118452]
[1740106536739,0.30622712,653.11,652.08,1.14118452]
[1740106543145,0.30622712,653.11,652.0,1.14118452]
[1740106544846,0.30622712,653.11,652.14,1.14118452]
[1740106547447,0.30622712,653.11,652.13,1.14118452]
[1740106548853,1.432,653.1,652.13,1.14118452]
[1740106549248,0.3062365,653.09,652.13,1.14118452]
[1740106549853,1.60144805,653.08,652.13,1.14118452]
[1740106550055,0.30624588,653.07,652.11,1.14118452]
[1740106551954,0.30624588,653.07,652.16,1.14118452]
[1740106553854,0.30624588,653.07,652.05,1.14118452]
[1740106556059,0.30624588,653.07,652.06,1.14118452]
[1740106558458,0.30624588,653.07,652.07,1.14118452]
[1740106560160,0.30624588,653.07,651.92,1.14118452]
[1740106562359,0.30624588,653.07,652.09,1.14118452]
[1740106565162,0.30624588,653.07,651.97,1.14118452]
[1740106568466,0.30624588,653.07,652.15,1.14118452]
[1740106571763,1.23824588,653.07,652.15,1.14118452]
[1740106573965,1.23824588,653.07,652.16,1.14118452]
[1740106577371,1.23824588,653.07,651.98,1.14118452]
[1740106580774,1.23824588,653.07,651.95,1.14118452]
[1740106582776,1.60165074,653.06,651.95,1.14118452]
[1740106583075,0.30625526,653.05,652.09,1.14118452]
[1740106585276,0.30625526,653.05,652.07,1.14118452]
[1740106587877,0.30625526,653.05,652.1,1.14118452]
[1740106589175,1.02,653.04,652.1,1.14118452]
[1740106589379,0.30626464,653.03,652.1,1.14118452]
[1740106589880,0.30626464,653.03,652.04,1.14118452]
[1740106592879,0.30626464,653.03,651.35,2.33719517]
[1740106592880,0.30626464,653.03,652.07,1.14118452]
[1740106595189,0.30626464,653.03,652.13,1.14118452]
[1740106597790,0.30626464,653.03,651.98,1.14118452]
[1740106600291,0.30626464,653.03,652.01,1.14118452]
[1740106602992,0.30626464,653.03,652.03,1.14118452]
[1740106606689,0.30626464,653.03,652.16,1.14118452]
[1740106607094,1.618,653.02,652.16,1.14118452]
[1740106609997,1.618,653.02,652.25,1.14118452]
[1740106612691,1.618,653.02,652.07,1.14118452]
[1740106615295,1.618,653.02,652.03,1.14118452]
[1740106617294,1.618,653.02,652.02,1.14118452]
[1740106620403,1.618,653.02,652.15,1.14118452]
[1740106623605,1.618,653.02,652.16,1.14118452]
[1740106627104,1.618,653.02,652.21,1.14118452]
[1740106632605,1.618,653.02,652.24,1.14118452]
[1740106634604,1.618,653.02,652.38,1.14118452]
[1740106635306,0.30626464,653.03,652.38,1.14118452]
[1740106636607,0.30626464,653.03,652.31,1.14118452]
[1740106639209,0.30626464,653.03,652.32,1.14118452]
[1740106644012,0.30626464,653.03,652.35,1.14118452]
[1740106649513,0.30626464,653.03,652.21,1.14118452]
[1740106652116,0.30626464,653.03,652.19,1.14118452]
[1740106654218,0.30626464,653.03,652.2,1.14118452]
[1740106657217,0.30626464,653.03,652.41,1.14118452]
[1740106659324,0.30626464,653.03,652.42,1.14118452]
[1740106662522,0.30626464,653.03,652.44,1.14118452]
[1740106664423,0.30626464,653.03,652.35,1.14118452]
[1740106667624,0.30626464,653.03,652.33,1.14118452]
[1740106669829,0.30626464,653.03,652.35,1.14118452]
[1740106672231,0.30626464,653.03,652.46,1.14118452]
[1740106676235,0.30626464,653.03,652.47,1.14118452]
[1740106679537,0.30626464,653.03,652.44,1.14118452]
[1740106681938,0.30626464,653.03,652.47,1.14118452]
[1740106685033,0.30626464,653.03,652.34,1.14118452]
[1740106687538,0.30626464,653.03,652.19,1.14118452]
[1740106689645,0.30626464,653.03,652.15,1.14118452]
[1740106691447,1.37568881,654.09,652.15,1.14118452]
[1740106691652,0.30577766,654.07,652.15,1.14118452]
[1740106691846,1.11676634,654.06,652.15,1.14118452]
[1740106692051,0.30579169,654.04,652.15,1.14118452]
[1740106692250,1.11676634,654.03,652.15,1.14118452]
[1740106692451,0.30580572,654.01,652.15,1.14118452]
[1740106692653,1.11676634,654.0,652.15,1.14118452]
[1740106692852,0.30581974,653.98,652.15,1.14118452]
[1740106693052,1.11676634,653.97,652.15,1.14118452]
[1740106693254,0.30583377,653.95,652.15,1.14118452]
[1740106693556,1.11676634,653.94,652.15,1.14118452]
[1740106693754,0.30584781,653.92,652.15,1.14118452]
[1740106693954,1.11676634,653.91,652.15,1.14118452]
[1740106694149,0.30586184,653.89,652.15,1.14118452]
[1740106694351,1.11676634,653.88,652.15,1.14118452]
[1740106694551,0.87772824,653.9,652.15,1.14118452]
[1740106694552,0.30587587,653.86,652.15,1.14118452]
[1740106694754,1.11676634,653.85,652.15,1.14118452]
[1740106694953,0.30588991,653.83,652.15,1.14118452]
[1740106695150,1.11676634,653.82,652.15,1.14118452]
[1740106695452,0.30590394,653.8,652.15,1.14118452]
[1740106695653,1.11676634,653.79,652.15,1.14118452]
[1740106695953,0.30591798,653.77,652.15,1.14118452]
[1740106696153,1.11676634,653.76,652.15,1.14118452]
[1740106696354,1.11676634,653.75,652.35,1.14118452]
[1740106696651,0.3059367,653.73,652.35,1.14118452]
[1740106696956,1.11676634,653.72,652.35,1.14118452]
[1740106697154,1.11676634,653.71,652.35,1.14118452]
[1740106697357,1.11676634,653.7,652.35,1.14118452]
[1740106697551,0.3059601,653.68,652.35,1.14118452]
[1740106697754,1.11676634,653.67,652.35,1.14118452]
[1740106697954,0.30597414,653.65,652.35,1.14118452]
[1740106698253,1.11676634,653.64,652.35,1.14118452]
[1740106698450,0.30598818,653.62,652.35,1.14118452]
[1740106698654,1.11676634,653.61,652.35,1.14118452]
[1740106698955,0.30600223,653.59,652.34,1.14118452]
[1740106703755,0.30600223,653.59,652.25,1.14118452]
[1740106705557,1.60046604,653.58,652.25,1.14118452]
[1740106705757,0.30601159,653.57,652.25,1.14118452]
[1740106706659,0.30601159,653.57,652.26,1.14118452]
[1740106707461,0.87621304,653.56,652.26,1.14118452]
[1740106707662,0.30602096,653.55,652.26,1.14118452]
[1740106708061,0.87621304,653.54,652.26,1.14118452]
[1740106708262,0.30603032,653.53,652.26,1.14118452]
[1740106709064,0.87621304,653.52,652.26,1.14118452]
[1740106709265,0.30603969,653.51,652.26,1.14118452]
[1740106709566,0.30603969,653.51,652.42,1.14118452]
[1740106710564,0.905,653.5,652.42,1.14118452]
[1740106710865,0.30604905,653.49,652.42,1.14118452]
[1740106713067,0.30604905,653.49,652.5,1.14118452]
[1740106714369,1.158,653.48,652.5,1.14118452]
[1740106714562,0.30605842,653.47,652.5,1.14118452]
[1740106715768,1.6004599,653.46,652.5,1.14118452]
[1740106715973,1.6004599,653.46,652.54,1.14118452]
[1740106715974,0.30606779,653.45,652.54,1.14118452]
[1740106718874,0.30606779,653.45,652.31,1.14118452]
[1740106721973,0.30606779,653.45,651.93,1.00240233]
[1740106721974,0.30606779,653.45,652.29,1.14118452]
[1740106725074,0.30606779,653.45,652.4,1.14118452]
[1740106726774,1.74406779,653.45,652.4,1.14118452]
[1740106729881,1.74406779,653.45,652.42,1.14118452]
[1740106731881,1.74406779,653.45,652.36,1.14118452]
[1740106734883,1.74406779,653.45,652.3,1.14118452]
[1740106737484,1.74406779,653.45,652.32,1.14118452]
[1740106740389,1.74406779,653.45,652.25,1.14118452]
[1740106742889,1.74406779,653.45,652.34,1.14118452]
[1740106743683,2.64106779,653.45,652.34,1.14118452]
[1740106744991,2.64106779,653.45,652.41,1.14118452]
[1740106748787,2.64106779,653.45,652.55,1.14118452]
[1740106750591,2.64106779,653.45,652.6,1.14118452]
[1740106753596,2.64106779,653.45,652.73,1.14118452]
[1740106753894,1.20306779,653.45,652.73,1.14118452]
[1740106756499,1.20306779,653.45,652.73,1.13250189]
[1740106756700,1.20306779,653.45,652.6,1.13250189]
[1740106757294,2.70306779,653.45,652.6,1.13250189]
[1740106759697,2.70306779,653.45,652.29,1.14474865]
[1740106761997,2.70306779,653.45,652.21,1.14474865]
[1740106764802,2.70306779,653.45,652.22,1.14474865]
[1740106772510,2.70306779,653.45,652.32,1.14474865]
[1740106775208,2.70306779,653.45,652.23,1.00215407]
[1740106775209,2.70306779,653.45,652.11,1.14474865]
[1740106778117,2.70306779,653.45,652.0,1.14474865]
[1740106780209,2.70306779,653.45,651.99,1.14474865]
[1740106781717,2.69749007,653.45,651.99,1.14474865]
[1740106783217,2.69749007,653.45,651.98,1.14474865]
[1740106786520,2.69749007,653.45,652.13,1.14474865]
[1740106789220,2.69749007,653.45,651.87,1.60093848]
[1740106789221,2.69749007,653.45,652.17,1.14474865]
[1740106791922,2.69749007,653.45,652.05,1.14474865]
[1740106794428,2.69749007,653.45,652.06,1.14474865]
[1740106796729,2.69749007,653.45,652.12,1.14474865]
[1740106799931,2.69749007,653.45,652.23,1.14474865]
[1740106802637,2.69749007,653.45,652.28,1.14474865]
[1740106805735,2.69749007,653.45,651.95,1.60088325]
[1740106805736,2.69749007,653.45,652.34,1.14474865]
[1740106807836,2.69749007,653.45,652.37,1.14474865]
[1740106810540,2.69749007,653.45,652.32,1.14474865]
[1740106816547,2.69749007,653.45,651.94,1.14474865]
[1740106816741,2.69749007,653.45,651.95,0.30677199]
[1740106818644,2.69749007,653.45,651.95,1.9074466]
[1740106823950,2.69749007,653.45,652.16,1.14474865]
[1740106826260,2.69749007,653.45,652.21,1.14474865]
[1740106828662,2.69749007,653.45,652.28,1.14474865]
[1740106830161,2.69749007,653.45,652.31,1.14474865]
[1740106832968,2.69749007,653.45,652.23,1.14474865]
[1740106835667,0.87610363,653.44,652.33,1.14474865]
[1740106836270,0.87610363,653.43,652.33,1.14474865]
[1740106836574,0.30049007,653.45,652.33,1.14474865]
[1740106837271,0.87593248,653.44,652.33,1.14474865]
[1740106837464,0.30607716,653.43,652.33,1.14474865]
[1740106838866,0.30607716,653.43,652.25,1.14474865]
[1740106839266,1.243,653.42,652.25,1.14474865]
[1740106839467,0.30608653,653.41,652.25,1.14474865]
[1740106841373,0.30608653,653.41,652.17,1.14474865]
[1740106843973,0.30608653,653.41,652.25,1.14474865]
[1740106845975,0.30608653,653.41,651.95,1.68047037]
[1740106845976,0.30608653,653.41,652.02,1.14474865]
[1740106848978,0.30608653,653.41,651.95,0.30677199]
[1740106853484,1.247,653.4,651.95,0.30677199]
[1740106853687,0.30609589,653.39,651.95,0.30677199]
[1740106857489,0.30609589,653.39,651.95,1.45152064]
[1740106858182,1.483,653.38,651.95,1.45152064]
[1740106861291,1.483,653.38,652.04,1.14474865]
[1740106864598,1.483,653.38,652.19,1.14474865]
[1740106867293,1.483,653.38,651.95,0.30677199]
[1740106867294,1.483,653.38,652.39,1.14474865]
[1740106870100,0.30609589,653.39,652.38,1.14474865]
[1740106875600,0.30609589,653.39,652.39,1.14474865]
[1740106876701,1.682,653.38,652.39,1.14474865]
[1740106878797,1.682,653.38,652.56,1.14655921]
[1740106881403,1.682,653.38,652.47,1.14655921]
[1740106882702,1.325,653.37,652.47,1.14655921]
[1740106884903,1.325,653.37,652.36,1.14655921]
[1740106887803,1.325,653.37,652.43,1.14655921]
[1740106890701,1.325,653.37,652.57,1.14655921]
[1740106893599,1.325,653.37,652.64,1.14655921]
[1740106896005,1.325,653.37,652.74,1.14655921]
[1740106899110,1.325,653.37,652.59,1.14655921]
[1740106900613,0.30610995,653.36,652.59,1.14655921]
[1740106902012,0.30610995,653.36,652.1,1.37369838]
[1740106902013,0.30610995,653.36,652.0,1.14655921]
[1740106905015,0.30610995,653.36,650.83,2.33719517]
[1740106905016,0.30610995,653.36,652.07,1.14655921]
[1740106906017,1.60102441,653.35,652.07,1.14655921]
[1740106906316,0.30611932,653.34,652.07,1.14655921]
[1740106910422,0.30611932,653.34,652.15,1.14655921]
[1740106913719,0.30611932,653.34,652.21,1.14655921]
[1740106915824,0.30611932,653.34,652.28,1.14655921]
[1740106918823,0.30611932,653.34,652.32,1.14655921]
[1740106920426,0.30611932,653.34,652.17,1.14655921]
[1740106923124,0.30611932,653.34,652.19,1.14655921]
[1740106928529,0.30611932,653.34,652.37,1.14655921]
[1740106929825,1.186,653.33,652.37,1.14655921]
[1740106931931,1.186,653.33,652.39,1.14655921]
[1740106935635,0.30612869,653.32,652.36,1.14655921]
[1740106938436,0.30612869,653.32,652.21,1.14655921]
[1740106941037,0.30612869,653.32,652.2,1.14655921]
[1740106943439,0.30612869,653.32,652.34,1.14655921]
[1740106945938,0.30612869,653.32,652.25,1.14655921]
[1740106948138,0.30612869,653.32,652.24,1.14655921]
[1740106948139,1.52412869,653.32,652.24,1.14655921]
[1740106950035,1.52412869,653.32,652.09,1.14655921]
[1740106953438,1.52412869,653.32,652.03,1.14655921]
[1740106955941,1.52412869,653.32,651.95,0.30677199]
[1740106955942,1.52412869,653.32,652.22,1.14655921]
[1740106957842,1.52412869,653.32,652.39,1.14655921]
[1740106960349,1.52412869,653.32,651.95,0.30677199]
[1740106960350,1.52412869,653.32,652.58,1.14655921]
[1740106962654,1.52412869,653.32,652.56,1.14655921]
[1740106965654,1.52412869,653.32,652.49,1.14655921]
[1740106967954,1.52412869,653.32,652.46,1.14655921]
[1740106970053,1.52412869,653.32,652.52,1.14655921]
[1740106973259,1.52412869,653.32,652.24,1.14655921]
[1740106975459,1.52412869,653.32,652.25,1.14655921]
[1740106977760,1.52412869,653.32,652.24,1.14655921]
[1740106980959,1.52412869,653.32,652.37,1.14655921]
[1740106984267,1.52412869,653.32,652.55,1.14655921]
[1740106984664,0.30612869,653.32,652.55,1.14655921]
[1740106986869,0.30612869,653.32,652.48,1.14655921]
[1740106989166,0.30612869,653.32,652.43,1.14655921]
[1740106992871,0.30612869,653.32,652.45,1.14655921]
[1740106995179,0.30612869,653.32,652.67,1.14655921]
[1740106998581,0.30612869,653.32,652.65,1.14655921]
[1740106998882,1.60053351,653.31,652.65,1.14655921]
[1740107000980,0.30613806,653.3,652.65,1.14655921]
[1740107001381,0.30613806,653.3,652.27,1.14655921]
[1740107006084,0.30613806,653.3,652.39,1.14655921]
[1740107006781,1.633,653.29,652.39,1.14655921]
[1740107008682,1.633,653.29,652.41,1.14655921]
[1740107011686,1.633,653.29,652.19,1.60047217]
[1740107011687,1.633,653.29,652.32,1.14655921]
[1740107014591,1.633,653.29,652.34,1.14655921]
[1740107016985,1.633,653.29,652.5,1.14655921]
[1740107018793,1.633,653.29,652.51,1.14655921]